bitfinex/quotes_SOLUSD_20251120
["timestamp","ask_amount","ask_price","bid_price","bid_amount"]
[1763617291110,0.68,143.8,143.78,4.06526385]
[1763617293413,0.68,143.8,143.77,6.95552474]
[1763617293583,0.68,143.8,143.78,4.06526385]
[1763617296915,0.68,143.8,143.77,4.06526385]
[1763617299299,7.63414664,143.8,143.77,4.06526385]
[1763617299729,4.06526385,143.78,143.76,0.1]
[1763617299890,5.70526385,143.77,143.76,0.1]
[1763617300293,6.38526385,143.77,143.76,0.1]
[1763617300518,2.32,143.77,143.76,0.1]
[1763617301808,9.275554,143.77,143.76,0.1]
[1763617305795,2.32,143.77,143.76,0.1]
[1763617308115,9.275554,143.77,143.76,0.1]
[1763617317944,2.32,143.77,143.76,0.1]
[1763617318127,1.64,143.77,143.76,0.1]
[1763617319024,2.36,143.77,143.76,0.1]
[1763617320315,1.64,143.77,143.76,0.1]
[1763617321314,2.36,143.77,143.76,0.1]
[1763617323838,0.72,143.77,143.76,0.1]
[1763617324137,2.36,143.78,143.76,0.1]
[1763617324642,0.72,143.77,143.76,0.1]
[1763617325127,1.64,143.78,143.76,0.1]
[1763617325328,0.72,143.77,143.76,0.1]
[1763617332351,1.64,143.78,143.76,9.87101562]
[1763617332531,1.64,143.8,143.77,2.81497778]
[1763617332730,2.36,143.8,143.77,2.81497778]
[1763617332926,2.36,143.8,143.77,2.60497778]
[1763617333762,2.36,143.8,143.77,9.56042254]
[1763617334959,2.36,143.8,143.77,2.60497778]
[1763617335136,0.72,143.79,143.77,2.60497778]
[1763617344775,0.72,143.79,143.77,9.560507]
[1763617348694,0.72,143.79,143.78,5.20701945]
[1763617348901,10.27956432,143.79,143.78,3.76701945]
[1763617349195,9.78882769,143.78,143.76,0.1]
[1763617349397,4.24497778,143.77,143.76,0.1]
[1763617349696,4.94497778,143.77,143.76,0.1]
[1763617349860,25.83270623,143.77,143.76,0.1]
[1763617350060,21.58772845,143.77,143.76,0.1]
[1763617350296,2.34,143.77,143.76,0.1]
[1763617351065,9.295554,143.77,143.76,0.1]
[1763617357112,2.34,143.77,143.76,0.1]
[1763617359181,1.64,143.77,143.76,0.1]
[1763617359382,2.34,143.77,143.76,0.1]
[1763617360677,1.64,143.78,143.76,0.81]
[1763617361487,2.34,143.78,143.76,0.81]
[1763617362307,9.29507972,143.78,143.76,0.1]
[1763617363300,1.64,143.78,143.76,0.81]
[1763617366400,2.34,143.78,143.76,0.81]
[1763617367719,9.29514103,143.78,143.76,0.81]
[1763617370813,9.29514103,143.78,143.76,0.1]
[1763617372015,9.27514103,143.78,143.76,0.1]
[1763617372815,9.27514103,143.78,143.76,0.78]
[1763617373020,8.59514103,143.78,143.76,0.78]
[1763617373192,9.27514103,143.78,143.76,0.78]
[1763617373816,8.59514103,143.78,143.76,0.78]
[1763617374028,9.27514103,143.78,143.76,0.78]
[1763617376129,9.27514103,143.78,143.76,0.1]
[1763617377833,0.68,143.77,143.76,0.1]
[1763617379227,4.74942643,143.77,143.76,0.1]
[1763617379732,0.68,143.77,143.76,0.1]
[1763617380114,7.635554,143.77,143.76,0.1]
[1763617380707,10.23514103,143.78,143.76,0.78]
[1763617380907,0.68,143.8,143.77,4.06942643]
[1763617381117,1.64,143.79,143.77,4.06942643]
[1763617381336,1.64,143.79,143.77,0.68]
[1763617381532,2.32,143.79,143.77,0.68]
[1763617381732,2.32,143.79,143.76,4.16942643]
[1763617381914,2.32,143.79,143.76,0.78]
[1763617382105,0.68,143.78,143.76,0.1]
[1763617382308,1.64,143.77,143.76,0.1]
[1763617382935,2.32,143.77,143.76,0.1]
[1763617384142,9.275554,143.77,143.76,0.1]
[1763617393836,8.595554,143.77,143.76,0.1]
[1763617394449,9.275554,143.77,143.76,0.1]
[1763617395718,13.34498043,143.77,143.76,0.1]
[1763617395925,27.90978769,143.76,143.7,0.1]
[1763617396121,4.06942643,143.73,143.7,0.1]
[1763617396338,1.64,143.72,143.7,0.1]
[1763617396548,2.32,143.72,143.7,0.1]
[1763617397325,11.70788443,143.71,143.7,0.1]
[1763617397526,6.95783266,143.73,143.7,4.84942643]
[1763617397844,1.64,143.72,143.71,4.06942643]
[1763617398048,1.64,143.72,143.71,4.74942643]
[1763617399168,1.64,143.72,143.71,0.68]
[1763617400138,1.64,143.72,143.71,4.74942643]
[1763617400333,1.64,143.72,143.71,11.70788443]
[1763617400535,1.64,143.74,143.71,11.70788443]
[1763617400762,1.64,143.74,143.73,4.06942643]
[1763617401162,1.64,143.74,143.73,4.75942643]
[1763617401349,1.64,143.74,143.73,0.69]
[1763617402468,1.64,143.74,143.73,4.75942643]
[1763617402776,8.5983741,143.8,143.73,61.71691616]
[1763617402944,1.64,143.8,143.76,4.06942643]
[1763617403280,8.59423202,143.8,143.76,4.06942643]
[1763617403579,2.36,143.8,143.77,0.69]
[1763617403744,9.31425368,143.8,143.77,0.69]
[1763617405044,12.66368011,143.8,143.75,4.06942643]
[1763617405249,13.38368011,143.8,143.77,0.69]
[1763617405974,12.66368011,143.8,143.75,4.06942643]
[1763617406170,4.78942643,143.79,143.74,4.75942643]
[1763617406777,0.72,143.78,143.75,0.69]
[1763617407077,1.64,143.77,143.75,0.69]
[1763617407257,1.64,143.77,143.73,11.71691226]
[1763617407445,8.59596008,143.77,143.72,6.95781624]
[1763617407650,0.7,143.76,143.73,0.69]
[1763617407846,0.7,143.76,143.71,4.06942643]
[1763617407847,4.76942643,143.76,143.71,4.06942643]
[1763617408151,4.76942643,143.76,143.71,4.75942643]
[1763617408341,0.7,143.75,143.71,4.06942643]
[1763617408544,1.64,143.74,143.72,0.69]
[1763617409073,8.59711381,143.74,143.72,0.69]
[1763617409366,0.7,143.73,143.7,4.85942643]
[1763617410869,0.7,143.73,143.7,11.81835143]
[1763617411273,1.64,143.74,143.7,11.12835143]
[1763617411477,1.64,143.74,143.72,4.06942643]
[1763617411952,1.64,143.74,143.72,4.75942643]
[1763617412270,1.64,143.74,143.72,0.69]
[1763617412643,8.59708347,143.74,143.72,0.69]
[1763617414640,1.64,143.74,143.72,0.69]
[1763617414847,1.64,143.74,143.72,4.75942643]
[1763617415747,1.64,143.74,143.73,0.69]
[1763617420459,1.64,143.74,143.73,11.71691616]
[1763617420666,1.64,143.76,143.73,11.71691616]
[1763617420853,1.64,143.76,143.74,0.69]
[1763617421178,7.65567054,143.77,143.74,0.69]
[1763617421382,1.64,143.76,143.74,0.69]
[1763617422956,1.64,143.76,143.74,4.75942643]
[1763617423963,1.64,143.76,143.74,11.71641845]
[1763617426974,1.64,143.76,143.75,0.69]
[1763617428583,1.64,143.76,143.75,4.75942643]
[1763617429160,7.65461458,143.79,143.75,4.75942643]
[1763617429355,1.64,143.78,143.76,0.69]
[1763617439769,2.34,143.78,143.76,0.69]
[1763617441671,2.60434916,143.8,143.76,0.69]
[1763617441672,6.95466474,143.8,143.77,2.60434916]
[1763617441875,3.30434916,143.82,143.76,7.64603687]
[1763617441876,1.64,143.82,143.78,3.31434916]
[1763617442094,2.34,143.82,143.78,3.31434916]
[1763617442295,0.7,143.81,143.79,0.71]
[1763617442482,0.7,143.81,143.78,2.60434916]
[1763617442684,0.7,143.81,143.78,3.31434916]
[1763617443084,7.65369869,143.81,143.78,3.31434916]
[1763617443291,7.65369869,143.81,143.78,0.71]
[1763617445287,9.29330124,143.82,143.78,10.26939894]
[1763617445474,0.7,143.81,143.78,7.66504978]
[1763617446702,9.29330124,143.82,143.79,0.71]
[1763617447080,0.7,143.81,143.79,0.71]
[1763617449211,0.7,143.81,143.78,10.26939894]
[1763617450707,2.60434916,143.79,143.73,7.66748973]
[1763617450881,1.64,143.78,143.74,3.31434916]
[1763617451087,2.34,143.78,143.74,3.31434916]
[1763617451289,2.34,143.78,143.75,0.71]
[1763617451490,1.64,143.78,143.75,0.71]
[1763617451689,8.59529596,143.78,143.75,0.71]
[1763617451997,3.30434916,143.77,143.72,3.31434916]
[1763617452194,3.30434916,143.77,143.72,0.71]
[1763617452508,0.7,143.76,143.73,0.71]
[1763617452716,1.64,143.75,143.73,0.71]
[1763617453713,1.64,143.75,143.73,3.31434916]
[1763617455005,1.64,143.75,143.72,2.60434916]
[1763617455203,2.34,143.75,143.72,3.31434916]
[1763617455513,9.29681135,143.75,143.72,3.31434916]
[1763617457829,9.29681135,143.75,143.72,0.71]
[1763617458025,8.59681135,143.75,143.72,0.71]
[1763617458217,0.7,143.74,143.71,3.31434916]
[1763617458800,9.29681135,143.75,143.72,0.71]
[1763617463693,9.29681135,143.75,143.7,25.17972385]
[1763617463694,8.59681135,143.75,143.7,25.17972385]
[1763617463890,0.66,143.74,143.71,0.67]
[1763617464705,9.25681135,143.75,143.71,0.67]
[1763617465018,0.66,143.74,143.7,0.1]
[1763617465216,6.95748973,143.73,143.7,0.77]
[1763617465420,1.64,143.72,143.7,0.77]
[1763617465719,1.64,143.72,143.7,3.37434916]
[1763617467517,1.64,143.72,143.7,0.77]
[1763617469328,2.35,143.72,143.7,0.77]
[1763617469629,1.64,143.72,143.7,0.77]
[1763617470425,9.30807954,143.72,143.7,0.1]
[1763617470629,2.35,143.72,143.7,0.1]
[1763617472222,2.35,143.72,143.7,0.79]
[1763617472809,2.35,143.72,143.7,0.1]
[1763617476831,2.35,143.72,143.7,0.79]
[1763617478834,6.95768424,143.73,143.7,7.74882008]
[1763617479038,7.66577258,143.77,143.72,2.60434916]
[1763617479223,6.95577258,143.77,143.73,2.60434916]
[1763617479429,8.59577258,143.77,143.73,2.60434916]
[1763617479744,8.59577258,143.77,143.74,0.69]
[1763617481043,9.30577258,143.77,143.74,0.69]
[1763617481951,2.35,143.77,143.74,0.69]
[1763617484140,2.35,143.77,143.74,7.6469953]
[1763617484343,2.35,143.77,143.75,0.69]
[1763617485442,1.64,143.77,143.75,0.69]
[1763617486640,2.35,143.77,143.75,0.69]
[1763617487150,1.64,143.77,143.75,0.69]
[1763617487855,1.64,143.77,143.75,7.64650385]
[1763617488339,1.64,143.77,143.76,0.69]
[1763617488719,1.64,143.77,143.75,7.64650385]
[1763617489445,1.64,143.77,143.76,0.69]
[1763617489651,1.64,143.78,143.76,0.69]
[1763617493239,2.3,143.78,143.75,6.95650385]
[1763617493439,2.3,143.78,143.76,0.67]
[1763617493638,1.64,143.78,143.76,0.67]
[1763617500037,2.3,143.78,143.76,0.67]
[1763617500253,1.64,143.78,143.76,0.67]
[1763617500643,2.3,143.78,143.76,0.67]
[1763617502153,1.64,143.78,143.76,0.67]
[1763617504947,2.3,143.78,143.76,0.67]
[1763617505567,1.64,143.78,143.76,0.67]
[1763617508671,2.3,143.78,143.76,0.67]
[1763617510270,9.2551671,143.78,143.76,0.67]
[1763617510568,8.5951671,143.78,143.76,0.67]
[1763617510765,9.2551671,143.78,143.76,0.67]
[1763617511174,2.3,143.78,143.76,0.67]
[1763617511378,1.64,143.78,143.76,0.67]
[1763617512461,1.64,143.78,143.76,7.62599407]
[1763617513380,1.64,143.78,143.76,0.67]
[1763617513781,1.64,143.78,143.75,11.02592692]
[1763617513960,1.64,143.78,143.76,0.67]
[1763617514477,1.64,143.78,143.76,4.73962485]
[1763617514676,1.64,143.78,143.76,11.69564608]
[1763617515881,1.64,143.78,143.76,11.02564608]
[1763617516064,1.64,143.78,143.77,0.67]
[1763617516385,1.64,143.78,143.76,11.69564608]
[1763617516678,1.64,143.78,143.76,11.02564608]
[1763617516881,1.64,143.78,143.77,0.67]
[1763617517272,7.61226703,143.84,143.77,4.73962485]
[1763617517465,9.25226703,143.84,143.8,4.06962485]
[1763617517680,8.59226703,143.84,143.8,4.06962485]
[1763617517872,6.95268424,143.83,143.8,4.06962485]
[1763617518266,7.61268424,143.83,143.8,4.73962485]
[1763617518661,6.95268424,143.83,143.8,4.73962485]
[1763617518868,0.66,143.82,143.8,4.73962485]
[1763617519485,7.61320057,143.82,143.79,4.06962485]
[1763617519693,7.61320057,143.82,143.79,4.73962485]
[1763617519991,0.66,143.81,143.79,4.73962485]
[1763617520883,7.66265243,143.83,143.8,0.7]
[1763617521073,7.66265243,143.83,143.79,4.76962485]
[1763617521387,0.71,143.82,143.79,4.76962485]
[1763617521889,7.66324717,143.82,143.79,4.76962485]
[1763617522690,7.66324717,143.82,143.79,4.06962485]
[1763617522885,7.66324717,143.82,143.8,0.7]
[1763617523974,1.64,143.81,143.79,4.06962485]
[1763617524176,2.35,143.81,143.79,4.76962485]
[1763617525372,0.71,143.8,143.75,4.76962485]
[1763617525886,0.71,143.8,143.76,0.7]
[1763617526087,6.95458654,143.79,143.76,0.7]
[1763617526491,7.66458654,143.79,143.76,0.7]
[1763617527799,1.64,143.78,143.76,0.7]
[1763617529579,1.64,143.78,143.76,4.76962485]
[1763617530801,1.64,143.78,143.77,0.72]
[1763617531497,1.64,143.78,143.76,4.06962485]
[1763617532282,0.71,143.83,143.77,4.06962485]
[1763617532587,1.64,143.82,143.8,4.06962485]
[1763617532980,1.64,143.82,143.79,4.06962485]
[1763617533688,1.64,143.82,143.79,11.02416291]
[1763617534896,1.64,143.82,143.79,4.06962485]
[1763617535197,2.35,143.82,143.79,4.06962485]
[1763617536800,2.35,143.82,143.79,3.84662485]
[1763617537191,2.35,143.82,143.79,10.80113543]
[1763617537886,2.35,143.82,143.78,6.95507024]
[1763617538086,2.35,143.82,143.79,4.06962485]
[1763617541384,2.35,143.82,143.79,11.02409257]
[1763617541586,2.35,143.82,143.79,4.06962485]
[1763617542481,2.35,143.82,143.79,11.02419724]
[1763617550294,0.68,143.81,143.79,11.02419724]
[1763617550827,1.64,143.82,143.8,4.06962485]
[1763617551036,0.68,143.88,143.82,68.12096]
[1763617551213,0.68,143.88,143.84,4.06962485]
[1763617551738,0.68,143.88,143.83,18.12096]
[1763617551941,0.68,143.88,143.84,4.06962485]
[1763617552311,7.63054708,143.88,143.84,4.06962485]
[1763617552728,0.68,143.87,143.84,4.06962485]
[1763617553611,0.68,143.87,143.85,4.06962485]
[1763617554229,1.64,143.89,143.86,4.06962485]
[1763617554230,0.68,143.89,143.86,4.06962485]
[1763617554531,0.68,143.89,143.88,4.06962485]
[1763617554532,1.64,143.89,143.88,4.06962485]
[1763617555419,2.32,143.89,143.87,4.06962485]
[1763617555724,1.64,143.89,143.88,4.06962485]
[1763617556033,0.2,143.91,143.88,4.06962485]
[1763617556207,1.84,143.91,143.9,4.06962485]
[1763617556724,1.84,143.91,143.88,7.15977361]
[1763617556725,2.52,143.91,143.89,4.06962485]
[1763617557305,0.68,143.9,143.88,4.06962485]
[1763617559315,1.84,143.91,143.89,4.06962485]
[1763617559849,2.52,143.91,143.89,4.06962485]
[1763617560436,2.52,143.91,143.88,4.06962485]
[1763617560746,0.68,143.9,143.88,4.06962485]
[1763617560911,0.68,143.9,143.88,2.5995033]
[1763617561107,1.84,143.91,143.89,2.5995033]
[1763617561311,0.88,143.91,143.9,2.5995033]
[1763617561538,0.2,143.91,143.9,2.5995033]
[1763617562138,0.88,143.91,143.89,2.5995033]
[1763617562856,0.2,143.91,143.89,2.5995033]
[1763617563440,0.88,143.91,143.89,2.5995033]
[1763617563648,0.88,143.91,143.88,9.54965007]
[1763617564641,0.88,143.91,143.89,2.5995033]
[1763617565150,0.88,143.91,143.88,2.5995033]
[1763617566149,0.2,143.91,143.89,2.5995033]
[1763617566447,0.2,143.91,143.9,2.5995033]
[1763617567375,0.2,143.91,143.9,132.9684765]
[1763617567845,0.2,143.91,143.9,70.9304633]
[1763617568047,0.2,143.91,143.9,20.9304633]
[1763617568430,0.2,143.91,143.9,27.87973362]
[1763617570653,0.2,143.91,143.9,27.66973362]
[1763617570853,0.2,143.91,143.9,27.87973362]
[1763617571242,0.2,143.91,143.9,127.87973362]
[1763617571636,0.2,143.91,143.9,77.87973362]
[1763617573240,0.2,143.91,143.9,127.87973362]
[1763617573965,0.2,143.91,143.9,129.51973362]
[1763617576542,0.2,143.93,143.92,50.0]
[1763617576765,0.2,143.93,143.92,73.69117465]
[1763617576947,0.2,143.93,143.92,64.8475165]
[1763617577147,0.2,143.93,143.92,54.4495033]
[1763617577466,0.2,143.93,143.92,57.0490066]
[1763617578452,0.2,143.93,143.92,51.85]
[1763617578652,0.2,143.93,143.92,61.39780791]
[1763617579252,0.2,143.93,143.92,63.99731121]
[1763617580749,0.2,143.93,143.92,113.99731121]
[1763617580963,0.2,143.93,143.92,114.69214167]
[1763617581249,0.2,143.94,143.92,122.49065157]
[1763617581448,0.2,143.94,143.93,2.8095033]
[1763617583366,0.2,143.94,143.93,9.75732515]
[1763617583566,0.2,143.94,143.93,10.24210733]
[1763617583787,0.2,143.94,143.93,9.75732515]
[1763617585568,0.2,143.94,143.93,10.45210733]
[1763617586160,0.2,143.94,143.93,12.09210733]
[1763617586971,0.2,143.94,143.93,73.49732515]
[1763617589687,0.2,143.94,143.93,74.19210733]
[1763617591183,0.2,143.95,143.94,127.90978769]
[1763617591365,0.2,143.95,143.94,130.71929099]
[1763617592388,0.2,143.98,143.96,100.0]
[1763617592579,0.2,143.98,143.97,7.53359575]
[1763617592797,0.2,143.98,143.97,14.68948725]
[1763617593161,0.2,144.02,143.99,9.78882769]
[1763617593362,0.2,144.02,144.01,77.90978769]
[1763617593579,0.2,144.02,144.01,82.14929099]
[1763617593980,0.2,144.02,144.01,69.76096]
[1763617594172,0.2,144.02,144.01,72.3604633]
[1763617595002,0.2,144.05,144.02,50.0]
[1763617595175,0.2,144.05,144.04,2.5995033]
[1763617595371,0.2,144.05,144.04,22.3604633]
[1763617596385,0.2,144.05,144.04,72.3604633]
[1763617596792,0.2,144.05,144.04,122.3604633]
[1763617596986,0.2,144.05,144.04,129.30297926]
[1763617597792,0.2,144.06,144.05,2.5995033]
[1763617598292,0.2,144.07,144.05,5.1990066]
[1763617598600,0.2,144.07,144.06,24.9599666]
[1763617598902,0.2,144.07,144.06,31.90151873]
[1763617599217,0.2,144.09,144.08,68.12096]
[1763617599364,0.2,144.11,144.1,118.12096]
[1763617599569,0.2,144.11,144.1,122.3604633]
[1763617599788,0.2,144.11,144.1,132.14929099]
[1763617600182,0.86,144.15,144.1,142.54730419]
[1763617600387,0.86,144.15,144.14,2.5995033]
[1763617600795,0.86,144.15,144.13,20.7204633]
[1763617601001,0.66,144.14,144.1,2.5995033]
[1763617601171,0.66,144.14,144.09,2.5995033]
[1763617601370,0.66,144.14,144.11,2.5995033]
[1763617603283,0.66,144.14,144.11,9.53862398]
[1763617603593,0.66,144.14,144.11,2.5995033]
[1763617603780,0.66,144.14,144.09,18.99026719]
[1763617603986,0.66,144.14,144.13,2.5995033]
[1763617605505,0.66,144.14,144.12,2.5995033]
[1763617606002,0.66,144.14,144.1,25.06044356]
[1763617606299,0.66,144.14,144.12,2.5995033]
[1763617606499,0.66,144.14,144.13,2.5995033]
[1763617606887,0.66,144.14,144.13,9.5376841]
[1763617607497,0.2,144.15,144.13,69.9356973]
[1763617607685,0.2,144.15,144.12,68.98575953]
[1763617607686,0.66,144.14,144.12,2.5995033]
[1763617608601,0.66,144.14,144.11,8.57879884]
[1763617608602,0.66,144.14,144.13,2.5995033]
[1763617610402,0.66,144.14,144.09,25.0605999]
[1763617610592,0.66,144.14,144.11,2.5995033]
[1763617610903,0.66,144.14,144.12,2.5995033]
[1763617612727,7.59770988,144.14,144.1,6.93944233]
[1763617613018,7.59770988,144.14,144.11,2.5995033]
[1763617613216,7.59770988,144.14,144.1,6.93944233]
[1763617613217,0.72,144.13,144.1,2.5995033]
[1763617613896,0.72,144.13,144.1,9.53912081]
[1763617616904,0.72,144.13,144.1,6.93961751]
[1763617617116,7.65821248,144.13,144.09,20.7204633]
[1763617617527,0.72,144.12,144.09,20.7204633]
[1763617617691,0.72,144.12,144.09,2.5995033]
[1763617618329,0.72,144.12,144.08,6.94043622]
[1763617618531,0.72,144.12,144.09,2.5995033]
[1763617619030,0.72,144.12,144.09,9.53925753]
[1763617620705,0.72,144.12,144.1,2.5995033]
[1763617620905,0.72,144.12,144.1,4.04982754]
[1763617622728,0.72,144.12,144.1,10.98928039]
[1763617624735,0.72,144.12,144.1,4.04982754]
[1763617624907,7.6587379,144.12,144.08,4.04982754]
[1763617625108,7.6587379,144.12,144.05,112.1]
[1763617625109,4.04982754,144.11,144.05,6.94200946]
[1763617625316,4.76982754,144.11,144.06,4.04982754]
[1763617625512,4.76982754,144.1,144.04,10.99215386]
[1763617625711,4.04982754,144.09,144.04,4.04982754]
[1763617625936,2.36,144.08,144.04,4.04982754]
[1763617626241,0.72,144.08,144.07,4.04982754]
[1763617627241,0.72,144.08,144.06,6.94153103]
[1763617627539,0.72,144.08,144.06,4.04982754]
[1763617628319,0.72,144.08,144.07,4.04982754]
[1763617629641,0.72,144.08,144.07,10.99089785]
[1763617629943,8.57930589,144.11,144.07,10.99089785]
[1763617630127,0.72,144.1,144.08,4.04982754]
[1763617630520,0.72,144.1,144.07,10.99089785]
[1763617631631,7.65962592,144.1,144.05,24.29591575]
[1763617631833,7.65962592,144.1,144.06,9.20737555]
[1763617632042,0.72,144.09,144.07,5.15754801]
[1763617632233,0.72,144.09,144.06,4.04982754]
[1763617632443,0.72,144.09,144.07,5.16050093]
[1763617632636,0.72,144.09,144.06,4.04982754]
[1763617632825,0.72,144.09,144.07,5.16023229]
[1763617633021,0.72,144.09,144.07,4.04982754]
[1763617633225,0.72,144.09,144.08,9.21003921]
[1763617634419,0.72,144.09,144.08,5.16021167]
[1763617635639,0.72,144.09,144.07,4.04982754]
[1763617637337,0.72,144.09,144.06,6.94141529]
[1763617637537,0.72,144.09,144.07,4.04982754]
[1763617638428,0.72,144.09,144.06,10.99124283]
[1763617639347,0.72,144.09,144.05,4.04982754]
[1763617639531,0.72,144.09,144.06,4.04982754]
[1763617640436,7.6601706,144.09,144.06,4.04982754]
[1763617640850,1.64,144.08,144.05,4.04982754]
[1763617641057,2.33,144.08,144.05,4.04982754]
[1763617641241,0.69,144.07,144.05,10.99177453]
[1763617642253,0.69,144.07,144.05,4.04982754]
[1763617642767,0.69,144.07,144.06,4.04982754]
[1763617644640,0.69,144.07,144.05,10.99178664]
[1763617645760,0.69,144.07,144.05,6.9419591]
[1763617646059,0.69,144.07,144.05,10.99178664]
[1763617646276,8.58015505,144.09,144.06,4.04982754]
[1763617646277,0.69,144.09,144.06,4.04982754]
[1763617646656,0.69,144.09,144.07,4.04982754]
[1763617646851,0.69,144.09,144.06,4.04982754]
[1763617648076,0.69,144.09,144.06,10.99115268]
[1763617648754,0.69,144.09,144.07,4.04982754]
[1763617650556,0.69,144.09,144.06,10.99115268]
[1763617652074,11.68005453,144.09,144.04,5.83426093]
[1763617652283,11.68005453,144.09,144.03,9.88408847]
[1763617652488,0.68,144.08,144.03,4.04982754]
[1763617652688,1.64,144.07,144.03,4.04982754]
[1763617652882,0.68,144.06,144.03,4.04982754]
[1763617653187,1.64,144.07,144.03,10.99261159]
[1763617655183,9.26125826,144.07,144.03,10.99261159]
[1763617656465,2.32,144.07,144.04,4.04982754]
[1763617657378,1.64,144.07,144.04,4.04982754]
[1763617658588,1.64,144.07,144.05,4.04982754]
[1763617658763,1.64,144.07,144.04,10.99203525]
[1763617659776,1.64,144.07,144.02,24.30159267]
[1763617659978,1.64,144.07,144.04,4.04982754]
[1763617660866,0.68,144.06,143.98,105.83426093]
[1763617661066,0.68,144.06,144.01,4.04982754]
[1763617661494,0.68,144.06,144.02,4.04982754]
[1763617662009,0.68,144.06,144.03,4.04982754]
[1763617663296,7.62157775,144.06,144.03,4.04982754]
[1763617663498,7.62157775,144.06,144.02,12.77747822]
[1763617663499,7.62157775,144.06,144.02,9.88408847]
[1763617663909,0.68,144.05,144.02,4.04982754]
[1763617664209,0.68,144.05,144.01,6.94365884]
[1763617664413,0.68,144.05,144.01,10.99348638]
[1763617665203,23.04310168,144.07,144.02,4.04982754]
[1763617665409,1.64,144.06,144.02,4.04982754]
[1763617665611,2.32,144.06,144.02,4.04982754]
[1763617667310,9.2618189,144.06,144.02,4.04982754]
[1763617667798,9.2618189,144.06,144.02,10.99322192]
[1763617669215,9.2618189,144.06,144.03,4.04982754]
[1763617670093,6.94125964,144.07,144.03,10.99276038]
[1763617670300,1.64,144.06,144.04,4.04982754]
[1763617670614,2.34,144.06,144.03,10.99276038]
[1763617672319,2.34,144.06,144.03,4.04982754]
[1763617672525,2.34,144.06,144.02,10.99330761]
[1763617672709,0.7,144.05,144.01,16.82800214]
[1763617673091,0.7,144.05,144.01,10.99374121]
[1763617673791,0.7,144.05,144.01,4.04982754]
[1763617674609,7.64226375,144.05,144.01,10.99377343]
[1763617678503,6.94226375,144.05,144.01,10.99377343]
[1763617678700,0.7,144.04,144.0,10.99405646]
[1763617678905,0.7,144.04,144.01,4.04982754]
[1763617679917,0.7,144.04,144.01,10.99361864]
[1763617682807,0.7,144.04,144.01,9.53878411]
[1763617686725,7.64258302,144.04,144.01,2.59499301]
[1763617686901,7.64258302,144.04,144.0,12.77861003]
[1763617686902,10.23757603,144.04,143.98,33.49544466]
[1763617687226,2.34,144.03,143.98,9.54022373]
[1763617687550,4.93499301,144.03,143.97,15.37497839]
[1763617687720,0.7,144.02,143.97,15.37497839]
[1763617688108,3.29499301,144.02,143.97,5.83426093]
[1763617688308,2.59499301,144.0,143.95,12.78101552]
[1763617688523,1.64,144.0,143.96,2.59499301]
[1763617688707,0.7,143.99,143.96,2.59499301]
[1763617688902,0.7,143.99,143.96,9.54131236]
[1763617689704,1.64,144.0,143.98,2.59499301]
[1763617690039,2.34,144.0,143.98,2.59499301]
[1763617691216,0.7,143.99,143.97,9.54046591]
[1763617692049,0.7,143.99,143.95,8.42925394]
[1763617692247,0.7,143.99,143.94,9.54231152]
[1763617692432,0.7,143.99,143.97,2.59499301]
[1763617692939,0.7,144.0,143.98,9.54040209]
[1763617693257,0.7,144.01,143.98,9.54040209]